[Event "DVM U12 2024"]
[Site "Heidelberg"]
[Date "2024.12.28"]
[Round "4"]
[White "Podousov, Andrii"]
[Black "Merle, Atreyu Lukas"]
[Result "1-0"]
[ECO "B73"]
[WhiteElo "1105"]
[BlackElo "1380"]
[Annotator "NA RC"]
[PlyCount "191"]
[EventDate "2024.12.23"]
[EventType "team-tourn"]
[EventRounds "7"]
[EventCountry "GER"]
[SourceTitle "playchess.com"]
[Source "ChessBase"]
[SourceQuality "1"]
[TimeControl "40/5400+30:1800+30"]

1. e4 {[%emt 0:00:01]} c5 {[%emt 0:00:09]} 2. Nf3 {[%emt 0:00:08]} d6 {[%emt 0:00:06]} 3. d4 {[%emt 0:00:07]} cxd4 {[%emt 0:00:05]} 4. Nxd4 {[%emt 0:00:10]} Nf6 {[%emt 0:00:09]} 5. Nc3 {[%emt 0:00:11]} g6 {[%emt 0:00:08]} 6. Be3 {[%emt 0:01:16]} Bg7 {[%emt 0:00:06]} 7. Be2 {[%emt 0:00:49]} O-O {[%emt 0:00:08]} 8. O-O {[%emt 0:00:28]} Nc6 {[%emt 0:00:04]} 9. Nxc6 {[%emt 0:01:00]} bxc6 {[%emt 0:00:09]} 10. h3 {[%emt 0:00:30]} d5 {[%emt 0:00:21]} 11. exd5 {[%emt 0:01:14]} cxd5 {[%emt 0:00:08]} 12. Bf3 {[%emt 0:03:27]} Bb7 {[%emt 0:01:40]} 13. Re1 {[%emt 0:05:13]} Rb8 {[%emt 0:02:25]} 14. Bf4 {[%emt 0:01:00]} Rc8 {[%emt 0:04:10]} 15. Nb5 {[%emt 0:03:00]} Qb6 {[%emt 0:03:29]} 16. Nc3 {[%emt 0:02:09]} Qxb2 {[%emt 0:01:13]} 17. Rb1 {[%emt 0:11:51]} Qxc3 {[%emt 0:01:38]} 18. Rxb7 {[%emt 0:00:24]} Qc5 {[%emt 0:06:27]} 19. Rexe7 {[%emt 0:01:56]} a5 {[%emt 0:03:18]} 20. Rbc7 {[%emt 0:01:56]} Rxc7 {[%emt 0:00:41]} 21. Rxc7 {[%emt 0:00:15]} Qb4 {[%emt 0:00:57]} 22. Qd2 {[%emt 0:08:22]} Qb1+ {[%emt 0:02:02]} 23. Kh2 {[%emt 0:03:25]} Qxa2 {[%emt 0:01:44]} 24. Rc5 {[%emt 0:00:51]} d4 {[%emt 0:01:50]} 25. Rxa5 {[%emt 0:01:13]} Qb1 {[%emt 0:01:00]} 26. Be5 {[%emt 0:02:09]} Qb6 {[%emt 0:00:40]} 27. Bxd4 {[%emt 0:03:03]} Qd6+ {[%emt 0:01:18]} 28. Kg1 {[%emt 0:02:36]} Rd8 {[%emt 0:01:03]} 29. c3 {[%emt 0:02:39]} Rb8 {[%emt 0:08:48]} 30. Ra8 {[%emt 0:01:51]} Rxa8 {[%emt 0:02:13]} 31. Bxa8 {[%emt 0:00:33]} Qb8 {[%emt 0:02:42]} 32. Bf3 {[%emt 0:01:22]} Qb1+ {[%emt 0:02:07]} 33. Qd1 {[%emt 0:01:16]} Qb5 {[%emt 0:01:44]} 34. Qe2 {[%emt 0:01:35]} Qg5 {[%emt 0:01:57]} 35. Qe3 {[%emt 0:02:41]} Qf5 {[%emt 0:00:29]} 36. c4 {[%emt 0:02:35]} Qb1+ {[%emt 0:02:47]} 37. Kh2 {[%emt 0:00:18]} Qb8+ {[%emt 0:01:33]} 38. Be5 {[%emt 0:02:15]} Ng4+ {[%emt 0:01:54]} 39. Bxg4 {[%emt 0:01:42]} Qxe5+ {[%emt 0:00:22]} 40. Qxe5 {[%emt 0:00:24]} Bxe5+ {[%emt 0:00:06]} 41. g3 {[%emt 0:31:09]} Kf8 {[%emt 0:30:37]} 42. Kg2 {[%emt 0:00:44]} Ke7 {[%emt 0:01:42]} 43. Bf3 {[%emt 0:01:38]} Kd6 {[%emt 0:00:15]} 44. Bd5 {[%emt 0:00:12]} f6 {[%emt 0:00:58]} 45. f4 {[%emt 0:00:54]} Bd4 {[%emt 0:00:32]} 46. Kf3 {[%emt 0:00:39]} h6 {[%emt 0:02:18]} 47. h4 {[%emt 0:00:27]} Ke7 {[%emt 0:01:27]} 48. g4 {[%emt 0:02:33]} Bc5 {[%emt 0:02:29]} 49. Ke4 {[%emt 0:00:00]} Bf2 {[%emt 0:00:50]} 50. h5 {[%emt 0:00:00]} g5 {[%emt 0:01:16]} 51. fxg5 {[%emt 0:00:26]} fxg5 {[%emt 0:01:45]} 52. Kf5 {[%emt 0:00:19]} Bd4 {[%emt 0:00:40]} 53. Kg6 {[%emt 0:00:27]} Bc5 {[%emt 0:01:45]} 54. Kxh6 {[%emt 0:00:20]} Kf6 {[%emt 0:00:08]} 55. Kh7 {[%emt 0:01:18]} Bf8 {[%emt 0:00:31]} 56. h6 {[%emt 0:01:03]} Bc5 {[%emt 0:00:19]} 57. Kg8 {[%emt 0:00:44]} Ke7 {[%emt 0:01:26]} 58. h7 {[%emt 0:00:28]} Bd4 {[%emt 0:00:10]} 59. h8=Q {[%emt 0:00:10]} Bxh8 {[%emt 0:00:09]} 60. Kxh8 {[%emt 0:00:08]} Kd6 {[%emt 0:00:07]} 61. Kg7 {[%emt 0:01:14]} Kc5 {[%emt 0:00:17]} 62. Kg6 {[%emt 0:00:13]} Kd6 {[%emt 0:00:11]} 63. Kxg5 {[%emt 0:00:11]} Ke7 {[%emt 0:00:50]} 64. Kf5 {[%emt 0:00:12]} Kf8 {[%emt 0:00:18]} 65. Kf6 {[%emt 0:00:13]} Ke8 {[%emt 0:00:11]} 66. g5 {[%emt 0:00:08]} Kf8 {[%emt 0:00:07]} 67. g6 {[%emt 0:00:10]} Ke8 {[%emt 0:00:10]} 68. g7 {[%emt 0:00:29]} Kd7 {[%emt 0:00:05]} 69. g8=R {[%emt 0:00:19]} Kd6 {[%emt 0:00:34]} 70. c5+ {[%emt 0:00:17]} Kxd5 {[%emt 0:00:00]} 71. Re8 {[%emt 0:00:28]} Kxc5 {[%emt 0:00:00]} 72. Rd8 {[%emt 0:00:08]} Kc6 {[%emt 0:00:13]} 73. Ke5 {[%emt 0:00:22]} Kc7 {[%emt 0:00:13]} 74. Rd1 {[%emt 0:00:02]} Kc6 {[%emt 0:00:32]} 75. Rd2 {[%emt 0:00:17]} Kc7 {[%emt 0:00:09]} 76. Ke6 {[%emt 0:00:07]} Kc8 {[%emt 0:00:15]} 77. Ke7 {[%emt 0:00:06]} Kc7 {[%emt 0:00:17]} 78. Rc2+ {[%emt 0:00:05]} Kb6 {[%emt 0:00:23]} 79. Kd7 {[%emt 0:00:11]} Kb5 {[%emt 0:00:16]} 80. Kd6 {[%emt 0:00:18]} Kb4 {[%emt 0:00:26]} 81. Rc5 {[%emt 0:00:19]} Kb3 {[%emt 0:00:07]} 82. Kd5 {[%emt 0:00:14]} Kb4 {[%emt 0:00:14]} 83. Kd4 {[%emt 0:00:23]} Kb3 {[%emt 0:00:10]} 84. Rc8 {[%emt 0:00:17]} Kb2 {[%emt 0:00:27]} 85. Kd3 {[%emt 0:00:17]} Kb1 {[%emt 0:00:08]} 86. Kd2 {[%emt 0:00:10]} Kb2 {[%emt 0:00:09]} 87. Rb8+ {[%emt 0:00:13]} Ka3 {[%emt 0:00:09]} 88. Kc2 {[%emt 0:00:10]} Ka4 {[%emt 0:00:46]} 89. Kc3 {[%emt 0:00:36]} Ka5 {[%emt 0:00:22]} 90. Rb4 {[%emt 0:00:16]} Ka6 {[%emt 0:00:08]} 91. Kc4 {[%emt 0:00:09]} Ka7 {[%emt 0:00:00]} 92. Kc5 {[%emt 0:00:07]} Ka8 {[%emt 0:00:22]} 93. Kc6 {[%emt 0:00:25]} Ka7 {[%emt 0:00:14]} 94. Rb1 {[%emt 0:00:11]} Ka8 {[%emt 0:00:11]} 95. Kc7 {[%emt 0:00:06]} Ka7 {[%emt 0:00:04]} 96. Ra1# {[%emt 0:00:21]} 1-0

[Event "DVM U12 2024"]
[Site "Heidelberg"]
[Date "2024.12.28"]
[Round "4"]
[White "Katzschner, Tim"]
[Black "Tuktamyshev, Timur"]
[Result "0-1"]
[ECO "A40"]
[WhiteElo "925"]
[BlackElo "1531"]
[Annotator "NA RC"]
[PlyCount "38"]
[EventDate "2024.12.23"]
[EventType "team-tourn"]
[EventRounds "7"]
[EventCountry "GER"]
[SourceTitle "playchess.com"]
[Source "ChessBase"]
[SourceQuality "1"]
[TimeControl "40/5400+30:1800+30"]

1. d4 {[%emt 0:00:03]} e5 {[%emt 0:00:12]} 2. Nf3 {[%emt 0:00:13]} exd4 {[%emt 0:00:12]} 3. Nxd4 {[%emt 0:00:23]} d5 {[%emt 0:00:05]} 4. Nc3 {[%emt 0:00:14]} Bb4 {[%emt 0:00:17]} 5. Bd2 {[%emt 0:00:15]} c5 {[%emt 0:00:26]} 6. Nf3 {[%emt 0:00:39]} Nf6 {[%emt 0:00:18]} 7. g3 {[%emt 0:00:13]} Nc6 {[%emt 0:01:55]} 8. Bg2 {[%emt 0:00:18]} Bf5 {[%emt 0:00:37]} 9. Rc1 {[%emt 0:00:53]} Qd7 {[%emt 0:01:04]} 10. O-O {[%emt 0:00:12]} Bh3 {[%emt 0:00:27]} 11. Bxh3 {[%emt 0:00:20]} Qxh3 {[%emt 0:00:03]} 12. Ng5 {[%emt 0:01:09]} Qf5 {[%emt 0:02:26]} 13. Bf4 {[%emt 0:01:45]} h6 {[%emt 0:00:58]} 14. Nf3 {[%emt 0:00:23]} O-O {[%emt 0:00:39]} 15. Qd3 {[%emt 0:00:26]} Qe6 {[%emt 0:03:51]} 16. Rfe1 {[%emt 0:00:44]} Rad8 {[%emt 0:02:00]} 17. Rcd1 {[%emt 0:00:46]} Qh3 {[%emt 0:01:29]} 18. Rf1 {[%emt 0:00:52]} Ng4 {[%emt 0:00:32]} 19. Nxd5 {[%emt 0:01:12]} Nd4 {[%emt 0:01:00]} 0-1